fUST/lending_fUST_20250517
["ID","MTS","AMOUNT","RATE_DAILY","PERIOD"]
[361341489,1747492243666,-545.66010842,0.00014246,2]
[361341490,1747492243676,-450.0,0.00014246,2]
[361341491,1747492243685,-309.35570035,0.00014246,2]
[361341492,1747492243694,-450.0,0.00014246,2]
[361341493,1747492243703,-180.79301604,0.00014246,2]
[361341494,1747492243712,-450.0,0.00014246,2]
[361341495,1747492243721,-779.24,0.00014246,2]
[361341496,1747492243730,-450.0,0.00014246,2]
[361341497,1747492243740,-450.0,0.00014246,2]
[361341498,1747492243749,-450.0,0.00014246,2]
[361341499,1747492243758,-1365.47,0.00014246,2]
[361341500,1747492243767,-450.0,0.00014246,2]
[361341501,1747492243777,-459.05,0.00014246,2]
[361341502,1747492243786,-873.7,0.00014246,2]
[361341503,1747492243795,-450.0,0.00014246,2]
[361341504,1747492243805,-450.0,0.00014246,2]
[361341505,1747492243814,-450.0,0.00014246,2]
[361341506,1747492243824,-450.0,0.00014246,2]
[361341507,1747492243833,-450.0,0.00014246,2]
[361341508,1747492243842,-392.2953512,0.00014383,2]
[361341509,1747492243851,-450.0,0.00014383,2]
[361341510,1747492243861,-450.0,0.00014383,2]
[361341511,1747492243870,-779.24,0.00014383,2]
[361341512,1747492243879,-450.0,0.00014383,2]
[361341513,1747492243889,-450.0,0.00014383,2]
[361341514,1747492243898,-450.0,0.00014383,2]
[361341515,1747492243907,-1365.47,0.00014383,2]
[361341516,1747492243916,-450.0,0.00014383,2]
[361341517,1747492243925,-459.05,0.00014383,2]
[361341518,1747492243935,-873.7,0.00014383,2]
[361341519,1747492243944,-450.0,0.00014383,2]
[361341520,1747492243953,-450.0,0.00014383,2]
[361341521,1747492243962,-450.0,0.00014383,2]
[361341522,1747492243971,-450.0,0.00014383,2]
[361341523,1747492243981,-1000.0,0.00014448,2]
[361341524,1747492243990,-450.0,0.0001452,2]
[361341525,1747492243999,-450.0,0.0001452,2]
[361341526,1747492244009,-779.24,0.0001452,2]
[361341527,1747492244018,-450.0,0.0001452,2]
[361341528,1747492244031,-450.0,0.0001452,2]
[361341529,1747492244040,-450.0,0.0001452,2]
[361341530,1747492244050,-1365.47,0.0001452,2]
[361341531,1747492244059,-450.0,0.0001452,2]
[361341532,1747492244069,-459.05,0.0001452,2]
[361341533,1747492244078,-873.7,0.0001452,2]
[361341534,1747492244087,-450.0,0.0001452,2]
[361341535,1747492244099,-450.0,0.0001452,2]
[361341536,1747492244109,-450.0,0.0001452,2]
[361341537,1747492244118,-450.0,0.0001452,2]
[361341538,1747492244127,-5000.0,0.00014563,2]
[361341539,1747492244138,-5000.0,0.00014563,2]
[361341540,1747492244147,-450.0,0.00014657,2]
[361341541,1747492244157,-450.0,0.00014657,2]
[361341542,1747492244167,-779.24,0.00014657,2]
[361341543,1747492244176,-450.0,0.00014657,2]
[361341544,1747492244186,-450.0,0.00014657,2]
[361341545,1747492244196,-450.0,0.00014657,2]
[361341546,1747492244205,-1365.47,0.00014657,2]
[361341547,1747492244214,-450.0,0.00014657,2]
[361341548,1747492244223,-459.05,0.00014657,2]
[361341549,1747492244232,-873.7,0.00014657,2]
[361341550,1747492244242,-450.0,0.00014657,2]
[361341551,1747492244251,-450.0,0.00014657,2]
[361341552,1747492244259,-450.0,0.00014657,2]
[361341553,1747492244269,-450.0,0.00014657,2]
[361341554,1747492244278,-503.10517284,0.00014712,2]
[361341555,1747492244287,-1000.0,0.00014712,2]
[361341556,1747492244296,-450.0,0.00014794,2]
[361341557,1747492244305,-450.0,0.00014794,2]
[361341558,1747492244315,-779.24,0.00014794,2]
[361341559,1747492244324,-450.0,0.00014794,2]
[361341560,1747492244334,-450.0,0.00014794,2]
[361341561,1747492244343,-450.0,0.00014794,2]
[361341562,1747492244352,-1365.47,0.00014794,2]
[361341563,1747492244361,-450.0,0.00014794,2]
[361341564,1747492244370,-459.05,0.00014794,2]
[361341565,1747492244379,-873.7,0.00014794,2]
[361341566,1747492244389,-450.0,0.00014794,2]
[361341567,1747492244399,-450.0,0.00014794,2]
[361341568,1747492244408,-450.0,0.00014794,2]
[361341569,1747492244417,-450.0,0.00014794,2]
[361341570,1747492244426,-420.0,0.0001486,2]
[361341571,1747492244435,-450.0,0.00014931,2]
[361341572,1747492244444,-450.0,0.00014931,2]
[361341573,1747492244453,-779.24,0.00014931,2]
[361341574,1747492244462,-450.0,0.00014931,2]
[361341575,1747492244472,-450.0,0.00014931,2]
[361341576,1747492244481,-450.0,0.00014931,2]
[361341577,1747492244490,-1365.47,0.00014931,2]
[361341578,1747492244499,-450.0,0.00014931,2]
[361341579,1747492244508,-459.05,0.00014931,2]
[361341580,1747492244517,-873.7,0.00014931,2]
[361341581,1747492244526,-450.0,0.00014931,2]
[361341582,1747492244535,-450.0,0.00014931,2]
[361341583,1747492244544,-450.0,0.00014931,2]
[361341584,1747492244553,-337.92241107,0.00014931,2]
[361341585,1747492244562,-1500.0,0.00014996,2]
[361341586,1747492244571,-160.0,0.00015,2]
[361341587,1747492244580,-420.0,0.00015009,2]
[361341588,1747492244589,-207.4,0.00015059,2]
[361341589,1747492244598,-1625.0,0.00015066,2]
[361341590,1747492244607,-450.0,0.00015068,2]
[361341591,1747492244615,-450.0,0.00015068,2]
[361341592,1747492244624,-779.24,0.00015068,2]
[361341593,1747492244634,-450.0,0.00015068,2]
[361341594,1747492244643,-450.0,0.00015068,2]
[361341595,1747492244652,-450.0,0.00015068,2]
[361341596,1747492244662,-450.0,0.00015068,2]
[361341597,1747492244671,-1365.47,0.00015068,2]
[361341598,1747492244680,-459.05,0.00015068,2]
[361341599,1747492244689,-873.7,0.00015068,2]
[361341600,1747492244697,-450.0,0.00015068,2]
[361341601,1747492244706,-450.0,0.00015068,2]
[361341602,1747492244715,-450.0,0.00015068,2]
[361341603,1747492244724,-151.0,0.00015068,2]
[361341604,1747492244733,-151.0,0.00015068,2]
[361341605,1747492244743,-151.0,0.00015068,2]
[361341606,1747492244752,-606.1233388,0.00015071,2]
[361341607,1747492244761,-500.0,0.00015199,2]
[361341608,1747492244771,-450.0,0.00015205,2]
[361341609,1747492244780,-450.0,0.00015205,2]
[361341610,1747492244790,-779.24,0.00015205,2]
[361341611,1747492244799,-450.0,0.00015205,2]
[361341612,1747492244808,-450.0,0.00015205,2]
[361341613,1747492244818,-450.0,0.00015205,2]
[361341614,1747492244827,-450.0,0.00015205,2]
[361341615,1747492244837,-1365.47,0.00015205,2]
[361341616,1747492244846,-459.05,0.00015205,2]
[361341617,1747492244855,-873.7,0.00015205,2]
[361341618,1747492244865,-450.0,0.00015205,2]
[361341619,1747492244874,-450.0,0.00015205,2]
[361341620,1747492244884,-450.0,0.00015205,2]
[361341621,1747492244894,-586.9567621,0.00015332,2]
[361341622,1747492244903,-450.0,0.00015342,2]
[361341623,1747492244912,-450.0,0.00015342,2]
[361341624,1747492244921,-779.24,0.00015342,2]
[361341625,1747492244931,-232.65366419,0.00015342,2]
[361341626,1747492244940,-450.0,0.00015342,2]
[361341627,1747492244949,-450.0,0.00015342,2]
[361341628,1747492244959,-450.0,0.00015342,2]
[361341629,1747492244968,-1365.47,0.00015342,2]
[361341630,1747492244977,-459.05,0.00015342,2]
[361341631,1747492244986,-873.7,0.00015342,2]
[361341632,1747492244995,-450.0,0.00015342,2]
[361341633,1747492245004,-450.0,0.00015342,2]
[361341634,1747492245013,-450.0,0.00015342,2]
[361341635,1747492245024,-501.49139493,0.00015352,5]
[361341636,1747492245033,-450.0,0.00015479,2]
[361341637,1747492245042,-450.0,0.00015479,2]
[361341638,1747492245051,-779.24,0.00015479,2]
[361341639,1747492245060,-450.0,0.00015479,2]
[361341640,1747492245069,-450.0,0.00015479,2]
[361341641,1747492245079,-450.0,0.00015479,2]
[361341642,1747492245088,-1365.47,0.00015479,2]
[361341643,1747492245097,-459.05,0.00015479,2]
[361341644,1747492245107,-873.7,0.00015479,2]
[361341645,1747492245117,-450.0,0.00015479,2]
[361341646,1747492245127,-450.0,0.00015479,2]
[361341647,1747492245136,-450.0,0.00015479,2]
[361341648,1747492245145,-2000.0,0.00015544,2]
[361341649,1747492245154,-450.0,0.00015616,2]
[361341650,1747492245163,-450.0,0.00015616,2]
[361341651,1747492245173,-779.24,0.00015616,2]
[361341652,1747492245182,-516.0,0.00015616,2]
[361341653,1747492245190,-450.0,0.00015616,2]
[361341654,1747492245200,-450.0,0.00015616,2]
[361341655,1747492245209,-1365.47,0.00015616,2]
[361341656,1747492245218,-459.05,0.00015616,2]
[361341657,1747492245227,-873.7,0.00015616,2]
[361341658,1747492245236,-450.0,0.00015616,2]
[361341659,1747492245245,-450.0,0.00015616,2]
[361341660,1747492245254,-450.0,0.00015753,2]
[361341661,1747492245264,-450.0,0.00015753,2]
[361341662,1747492245273,-779.24,0.00015753,2]
[361341663,1747492245282,-450.0,0.00015753,2]
[361341664,1747492245291,-459.83,0.00015753,2]
[361341665,1747492245300,-1365.47,0.00015753,2]
[361341666,1747492245309,-459.05,0.00015753,2]
[361341667,1747492245319,-873.7,0.00015753,2]
[361341668,1747492245328,-450.0,0.00015753,2]
[361341669,1747492245337,-450.0,0.00015753,2]
[361341670,1747492245346,-2237.0,0.00015879,2]
[361341671,1747492245355,-404.0,0.00015879,2]
[361341672,1747492245364,-450.0,0.0001589,2]
[361341673,1747492245372,-450.0,0.0001589,2]
[361341674,1747492245382,-779.24,0.0001589,2]
[361341675,1747492245392,-450.0,0.0001589,2]
[361341676,1747492245401,-1365.47,0.0001589,2]
[361341677,1747492245410,-459.05,0.0001589,2]
[361341678,1747492245419,-873.7,0.0001589,2]
[361341679,1747492245428,-485.43,0.0001589,2]
[361341680,1747492245437,-450.0,0.0001589,2]
[361341681,1747492245446,-2328.971,0.00015978,2]
[361341682,1747492245455,-450.0,0.00016027,2]
[361341683,1747492245464,-450.0,0.00016027,2]
[361341684,1747492245473,-779.24,0.00016027,2]
[361341685,1747492245482,-450.0,0.00016027,2]
[361341686,1747492245491,-1365.47,0.00016027,2]
[361341687,1747492245500,-459.05,0.00016027,2]
[361341688,1747492245509,-873.7,0.00016027,2]
[361341689,1747492245518,-545.05,0.00016027,2]
[361341690,1747492245527,-2500.0,0.00016092,2]
[361341691,1747492245537,-150.952,0.0001615,2]
[361341692,1747492245546,-429.64,0.00016164,2]
[361341693,1747492245554,-450.0,0.00016164,2]
[361341694,1747492245563,-779.24,0.00016164,2]
[361341695,1747492245572,-450.0,0.00016164,2]
[361341696,1747492245582,-1365.47,0.00016164,2]
[361341697,1747492245591,-459.05,0.00016164,2]
[361341698,1747492245600,-873.7,0.00016164,2]
[361341699,1747492245609,-151.0,0.00016164,2]
[361341700,1747492245618,-151.0,0.00016164,2]
[361341701,1747492245627,-151.0,0.00016164,2]
[361341702,1747492245636,-314.0,0.00016287,2]
[361341703,1747492245645,-450.0,0.00016301,2]
[361341704,1747492245654,-779.24,0.00016301,2]
[361341705,1747492245664,-1365.47,0.00016301,2]
[361341706,1747492245674,-459.05,0.00016301,2]
[361341707,1747492245683,-873.7,0.00016301,2]
[361341708,1747492245692,-606.1233388,0.00016406,2]
[361341709,1747492245701,-450.0,0.00016438,2]
[361341710,1747492245711,-779.24,0.00016438,2]
[361341711,1747492245721,-1365.47,0.00016438,2]
[361341712,1747492245730,-459.05,0.00016438,2]
[361341713,1747492245739,-873.7,0.00016438,2]
[361341714,1747492245749,-587.0,0.00016449,2]
[361341715,1747492245758,-636.0,0.000165,2]
[361341716,1747492245770,-173.1960359,0.00016575,2]
[361341717,1747492245779,-779.24,0.00016575,2]
[361341718,1747492245788,-1365.47,0.00016575,2]
[361341719,1747492245798,-459.05,0.00016575,2]
[361341720,1747492245807,-873.7,0.00016575,2]
[361341721,1747492245816,-1253.92630672,0.0001664,2]
[361341722,1747492245826,-779.24,0.00016712,2]
[361341723,1747492245963,-1365.47,0.00016712,2]
[361341724,1747492245974,-459.05,0.00016712,2]
[361341726,1747492245984,-873.7,0.00016712,2]
[361341727,1747492245994,-231.2,0.000168,2]
[361341728,1747492246003,-779.27031264,0.00016849,2]
[361341730,1747492246013,-1365.61,0.00016849,2]
[361341732,1747492246025,-459.07,0.00016849,2]
[361341734,1747492246034,-873.87,0.00016849,2]
[361341735,1747492246044,-272.4,0.000169,2]
[361341736,1747492246053,-500.0,0.00016972,2]
[361341737,1747492246063,-500.0,0.00016972,2]
[361341738,1747492246073,-500.0,0.00016972,2]
[361341739,1747492246082,-586.9567621,0.00017066,2]
[361341740,1747492246091,-1846.54,0.000175,2]
[361341741,1747492246101,-170.56,0.00017555,2]
[361341742,1747492246110,-170.56,0.00017555,2]
[361341743,1747492246119,-170.56,0.00017555,2]
[361341744,1747492246128,-170.56,0.00017555,2]
[361341745,1747492246137,-170.56,0.00017555,2]
[361341746,1747492246146,-170.61778953,0.00017555,2]
[361341747,1747492246156,-652.61296533,0.00017637,2]
[361341748,1747492246166,-207.5451357,0.00017671,2]
[361341749,1747492246175,-321.8536889,0.00017671,2]
[361341750,1747492246184,-606.1233388,0.00017742,2]
[361341751,1747492246194,-251.46315609,0.00017788,2]
[361341752,1747492246203,-157.4462085,0.0001791,2]
[361341753,1747492246212,-500.0,0.00017999,2]
[361341754,1747492246222,-500.0,0.00017999,2]
[361341755,1747492246231,-500.0,0.00017999,2]
[361341756,1747492246241,-500.0,0.00017999,2]
[361341757,1747492246250,-500.0,0.00017999,2]
[361341758,1747492246259,-500.0,0.00017999,2]
[361341759,1747492246268,-500.0,0.00017999,2]
[361341760,1747492246277,-110829.05174713,0.00018,2]
[361341761,1747492246287,-28983.49635056,0.00018,2]
[361341762,1747492246295,-7038.01364579,0.00018,2]
[361341763,1747492246305,-1000.0,0.00018,3]
[361341764,1747492246314,-151.0,0.00018,2]
[361341765,1747492246323,-151.0,0.00018,2]
[361341766,1747492246331,-151.0,0.00018,2]
[361341767,1747492246340,-151.0,0.00018,2]
[361341768,1747492246349,-477.3833,0.00018,2]
[361341769,1747492246358,-151.0,0.00018,2]
[361341770,1747492246367,-151.0,0.00018,2]
[361341771,1747492246376,-291.394929,0.00018,2]
[361341772,1747492246385,-154.897987,0.00018,2]
[361341773,1747492246394,-151.0,0.00018,2]
[361341774,1747492246403,-151.0,0.00018,2]
[361341775,1747492246412,-151.0,0.00018,2]
[361341776,1747492246421,-624.471708,0.00018,2]
[361341777,1747492246431,-624.471708,0.00018,2]
[361341778,1747492246440,-151.0,0.00018,2]
[361341779,1747492246448,-208.09526,0.00018,2]
[361341780,1747492246457,-151.0,0.00018,2]
[361341781,1747492246467,-208.09526,0.00018,2]
[361341782,1747492246476,-151.0,0.00018,2]
[361341783,1747492246485,-253.80693,0.00018,2]
[361341784,1747492246495,-253.80693,0.00018,2]
[361341785,1747492246504,-151.0,0.00018,2]
[361341786,1747492246513,-151.0,0.00018,2]
[361341787,1747492246522,-151.0,0.00018,2]
[361341788,1747492246531,-151.0,0.00018,2]
[361341789,1747492246540,-151.833104,0.00018,2]
[361341790,1747492246549,-500.0,0.00018025,2]
[361341791,1747492246558,-823.0,0.00018026,2]
[361341792,1747492246568,-1000.0,0.000185,4]
[361341793,1747492246578,-1000.0,0.000185,2]
[361341794,1747492246587,-586.9567621,0.000188,2]
[361341795,1747492246597,-160.47496843,0.000188,2]
[361341796,1747492246606,-404.0,0.00018879,2]
[361341797,1747492246615,-500.0,0.00018899,2]
[361341798,1747492246624,-151.0,0.000189,2]
[361341799,1747492246633,-181.882207,0.000189,2]
[361341800,1747492246643,-181.882207,0.000189,2]
[361341801,1747492246652,-151.0,0.000189,2]
[361341802,1747492246662,-189.734243,0.000189,2]
[361341803,1747492246672,-189.734243,0.000189,2]
[361341804,1747492246682,-151.0,0.000189,2]
[361341805,1747492246692,-151.0,0.000189,2]
[361341806,1747492246701,-151.0,0.000189,2]
[361341807,1747492246710,-199.679701,0.000189,2]
[361341808,1747492246719,-151.0,0.000189,2]
[361341809,1747492246728,-151.0,0.000189,2]
[361341810,1747492246737,-151.0,0.000189,2]
[361341811,1747492246747,-151.0,0.000189,2]
[361341812,1747492246757,-151.0,0.000189,2]
[361341813,1747492246767,-624.471708,0.000189,2]
[361341814,1747492246778,-624.471708,0.000189,2]
[361341815,1747492246787,-151.0,0.000189,2]
[361341816,1747492246797,-208.09526,0.000189,2]
[361341817,1747492246807,-151.0,0.000189,2]
[361341818,1747492246816,-208.09526,0.000189,2]
[361341819,1747492246826,-151.0,0.000189,2]
[361341820,1747492246836,-253.80693,0.000189,2]
[361341821,1747492246846,-253.80693,0.000189,2]
[361341822,1747492246855,-151.0,0.000189,2]
[361341823,1747492246864,-151.0,0.000189,2]
[361341824,1747492246874,-578.78362993,0.00018997,2]
[361341825,1747492246883,-500.0,0.00018999,2]
[361341826,1747492246894,-500.0,0.00018999,2]
[361341827,1747492246903,-8497.82884589,0.00019,2]
[361341828,1747492246913,-4776.53296537,0.00019,7]
[361341829,1747492246922,-45520.14546912,0.00019,7]
[361341830,1747492246932,-151.0,0.00019,2]
[361341831,1747492246941,-160.0,0.00019,7]
[361341832,1747492246951,-151.0,0.00019,2]
[361341833,1747492246960,-151.0,0.00019,2]
[361341834,1747492246970,-1000.0,0.00019,2]
[361341835,1747492246979,-500.0,0.00019077,2]
[361341836,1747492246989,-500.0,0.00019077,2]
[361341837,1747492246999,-500.0,0.00019077,2]
[361341838,1747492247008,-606.1233388,0.00019077,2]
[361341839,1747492247017,-151.0,0.00019077,2]
[361341840,1747492247031,-151.0,0.00019078,2]
[361341841,1747492247040,-151.0,0.00019078,2]
[361341842,1747492247049,-259.565218,0.00019078,2]
[361341843,1747492247059,-259.565218,0.00019078,2]
[361341844,1747492247069,-151.0,0.00019078,2]
[361341845,1747492247078,-151.0,0.00019078,2]
[361341846,1747492247087,-151.0,0.00019078,2]
[361341847,1747492247097,-151.0,0.00019078,2]
[361341848,1747492247107,-151.0,0.00019078,2]
[361341849,1747492247116,-151.0,0.00019078,2]
[361341850,1747492247125,-151.0,0.00019078,2]
[361341851,1747492247137,-151.0,0.00019078,2]
[361341852,1747492247146,-151.0,0.00019078,2]
[361341853,1747492247156,-151.0,0.00019078,2]
[361341854,1747492247165,-631.679366,0.00019078,2]
[361341855,1747492247175,-631.679366,0.00019078,2]
[361341856,1747492247184,-151.0,0.00019078,2]
[361341857,1747492247193,-151.0,0.00019078,2]
[361341858,1747492247202,-151.0,0.00019078,2]
[361341859,1747492247211,-151.0,0.00019078,2]
[361341860,1747492247220,-151.0,0.00019078,2]
[361341861,1747492247229,-151.0,0.00019078,2]
[361341862,1747492247237,-151.0,0.00019078,2]
[361341863,1747492247247,-151.0,0.00019078,2]
[361341864,1747492247255,-1701.994277,0.00019078,2]
[361341865,1747492247264,-151.0,0.00019078,2]
[361341866,1747492247273,-1701.994277,0.00019078,2]
[361341867,1747492247282,-151.0,0.00019078,2]
[361341868,1747492247290,-151.0,0.00019078,2]
[361341869,1747492247299,-151.0,0.00019078,2]
[361341870,1747492247310,-5867.346872,0.00019078,2]
[361341871,1747492247319,-5867.346872,0.00019078,2]
[361341872,1747492247328,-151.0,0.00019078,2]
[361341873,1747492247338,-181.882207,0.00019078,2]
[361341874,1747492247347,-181.882207,0.00019078,2]
[361341875,1747492247356,-151.0,0.00019078,2]
[361341876,1747492247365,-189.734243,0.00019078,2]
[361341877,1747492247374,-189.734243,0.00019078,2]
[361341878,1747492247383,-151.0,0.00019078,2]
[361341879,1747492247393,-151.0,0.00019078,2]
[361341880,1747492247402,-151.0,0.00019078,2]
[361341881,1747492247412,-151.0,0.00019078,2]
[361341882,1747492247421,-151.0,0.00019078,2]
[361341883,1747492247430,-151.0,0.00019078,2]
[361341884,1747492247439,-151.0,0.00019078,2]
[361341885,1747492247449,-151.0,0.00019078,2]
[361341886,1747492247458,-151.0,0.00019078,2]
[361341887,1747492247468,-228.344291,0.00019078,2]
[361341888,1747492247477,-151.0,0.00019078,2]
[361341889,1747492247487,-151.0,0.00019078,2]
[361341890,1747492247496,-151.0,0.00019078,2]
[361341891,1747492247506,-151.0,0.00019078,2]
[361341892,1747492247515,-151.0,0.00019078,2]
[361341893,1747492247524,-151.0,0.00019078,2]
[361341894,1747492247533,-624.471708,0.00019078,2]
[361341895,1747492247542,-624.471708,0.00019078,2]
[361341896,1747492247552,-624.471708,0.00019078,2]
[361341897,1747492247561,-624.471708,0.00019078,2]
[361341898,1747492247570,-151.0,0.00019078,2]
[361341899,1747492247579,-290.943191,0.00019078,2]
[361341900,1747492247589,-208.09526,0.00019078,2]
[361341901,1747492247598,-208.09526,0.00019078,2]
[361341902,1747492247607,-151.0,0.00019078,2]
[361341903,1747492247616,-151.0,0.00019078,2]
[361341904,1747492247625,-208.09526,0.00019078,2]
[361341905,1747492247634,-208.09526,0.00019078,2]
[361341906,1747492247644,-151.0,0.00019078,2]
[361341907,1747492247654,-151.0,0.00019078,2]
[361341908,1747492247663,-253.80693,0.00019078,2]
[361341909,1747492247673,-253.80693,0.00019078,2]
[361341910,1747492247682,-253.80693,0.00019078,2]
[361341911,1747492247691,-253.80693,0.00019078,2]
[361341912,1747492247700,-151.0,0.00019078,2]
[361341913,1747492247709,-151.0,0.00019078,2]
[361341914,1747492247718,-151.0,0.00019078,2]
[361341915,1747492247727,-39838.71932931,0.00019078,2]
[361341916,1747492247736,-218.70890931,0.00019177,4]
[361341917,1747492247746,-210.94,0.00019177,2]
[361341918,1747492247755,-289.133121,0.00019178,2]
[361341919,1747492247765,-151.0,0.00019178,2]
[361341920,1747492247774,-151.0,0.00019178,2]
[361341921,1747492247783,-151.0,0.00019178,2]
[361341922,1747492247792,-151.0,0.00019178,2]
[361341923,1747492247802,-151.0,0.00019178,2]
[361341924,1747492247811,-151.0,0.00019178,2]
[361341925,1747492247821,-151.0,0.00019178,2]
[361341926,1747492247830,-151.0,0.00019178,2]
[361341927,1747492247839,-151.0,0.00019178,2]
[361341928,1747492247848,-151.0,0.00019178,2]
[361341929,1747492247857,-151.0,0.00019178,2]
[361341930,1747492247867,-151.0,0.00019178,2]
[361341931,1747492247876,-151.0,0.00019178,2]
[361341932,1747492247886,-259.565218,0.00019178,2]
[361341933,1747492247895,-259.565218,0.00019178,2]
[361341934,1747492247904,-259.565218,0.00019178,2]
[361341935,1747492247914,-259.565218,0.00019178,2]
[361341936,1747492247924,-151.0,0.00019178,2]
[361341937,1747492247933,-151.0,0.00019178,2]
[361341938,1747492247943,-151.0,0.00019178,2]
[361341939,1747492247953,-151.0,0.00019178,2]
[361341940,1747492247963,-151.0,0.00019178,2]
[361341941,1747492247973,-151.0,0.00019178,2]
[361341942,1747492247983,-151.0,0.00019178,2]
[361341943,1747492247992,-151.0,0.00019178,2]
[361341944,1747492248001,-151.0,0.00019178,2]
[361341945,1747492248011,-151.0,0.00019178,2]
[361341946,1747492248021,-243.210058,0.00019178,2]
[361341947,1747492248033,-151.0,0.00019178,2]
[361341948,1747492248043,-151.0,0.00019178,2]
[361341949,1747492248052,-151.0,0.00019178,2]
[361341950,1747492248061,-151.0,0.00019178,2]
[361341951,1747492248071,-151.0,0.00019178,2]
[361341952,1747492248080,-151.0,0.00019178,2]
[361341953,1747492248089,-151.0,0.00019178,2]
[361341954,1747492248099,-151.0,0.00019178,2]
[361341955,1747492248108,-631.679366,0.00019178,2]
[361341956,1747492248118,-631.679366,0.00019178,2]
[361341957,1747492248127,-631.679366,0.00019178,2]
[361341958,1747492248137,-631.679366,0.00019178,2]
[361341959,1747492248146,-151.0,0.00019178,2]
[361341960,1747492248156,-151.0,0.00019178,2]
[361341961,1747492248166,-151.0,0.00019178,2]
[361341962,1747492248175,-215.68047,0.00019178,2]
[361341963,1747492248184,-151.0,0.00019178,2]
[361341964,1747492248194,-151.0,0.00019178,2]
[361341965,1747492248203,-151.0,0.00019178,2]
[361341966,1747492248213,-151.0,0.00019178,2]
[361341967,1747492248222,-1701.994277,0.00019178,2]
[361341968,1747492248231,-151.0,0.00019178,2]
[361341969,1747492248241,-1701.994277,0.00019178,2]
[361341970,1747492248250,-154.619579,0.00019178,2]
[361341971,1747492248259,-151.0,0.00019178,2]
[361341972,1747492248268,-151.0,0.00019178,2]
[361341973,1747492248277,-1701.994277,0.00019178,2]
[361341974,1747492248287,-1701.994277,0.00019178,2]
[361341975,1747492248296,-151.0,0.00019178,2]
[361341976,1747492248306,-151.0,0.00019178,2]
[361341977,1747492248315,-151.0,0.00019178,2]
[361341978,1747492248325,-151.0,0.00019178,2]
[361341979,1747492248334,-151.0,0.00019178,2]
[361341980,1747492248343,-5867.346872,0.00019178,2]
[361341981,1747492248354,-5867.346872,0.00019178,2]
[361341982,1747492248363,-5867.346872,0.00019178,2]
[361341983,1747492248372,-5867.346872,0.00019178,2]
[361341984,1747492248381,-151.0,0.00019178,2]
[361341985,1747492248391,-151.0,0.00019178,2]
[361341986,1747492248401,-181.882207,0.00019178,2]
[361341987,1747492248411,-181.882207,0.00019178,2]
[361341988,1747492248420,-181.882207,0.00019178,2]
[361341989,1747492248429,-181.882207,0.00019178,2]
[361341990,1747492248438,-151.0,0.00019178,2]
[361341991,1747492248447,-151.0,0.00019178,2]
[361341992,1747492248456,-189.734243,0.00019178,2]